fUST/lending_fUST_20250731
["ID","MTS","AMOUNT","RATE_DAILY","PERIOD"]
[376309444,1753925452855,-285.444168,0.00022668,7]
[376309445,1753925452864,-285.444168,0.00022668,7]
[376309446,1753925452873,-375.276282,0.00022668,7]
[376309447,1753925452894,-375.276282,0.00022668,7]
[376309448,1753925452904,-151.0,0.00022668,7]
[376309449,1753925452914,-151.0,0.00022668,7]
[376309450,1753925452924,-467.0,0.00022687,2]
[376309451,1753925452934,-500.0,0.00022703,2]
[376309452,1753925452944,-1500.0,0.00022719,2]
[376309453,1753925452954,-1500.0,0.00022719,2]
[376309454,1753925452963,-1393.65142561,0.00022719,2]
[376309455,1753925452973,-436.0,0.0002274,2]
[376309456,1753925452983,-800.0,0.00022758,2]
[376309457,1753925452993,-467.0,0.00022762,2]
[376309458,1753925453003,-467.0,0.00022764,2]
[376309459,1753925453012,-267.9595848,0.0002278,2]
[376309460,1753925453126,-316.69741249,0.0002278,2]
[376309461,1753925453136,-1462.23,0.00022789,2]
[376309462,1753925453145,-971.69,0.0002279,2]
[376309463,1753925453154,-585.12,0.0002279,2]
[376309464,1753925453164,-287.27,0.0002279,2]
[376309465,1753925453174,-460.0,0.0002279,2]
[376309466,1753925453183,-2247.88,0.00022791,2]
[376309467,1753925453192,-977.17,0.00022791,2]
[376309468,1753925453201,-572.81,0.00022791,2]
[376309469,1753925453210,-927.59,0.00022792,2]
[376309470,1753925453221,-1256.33,0.00022792,2]
[376309471,1753925453232,-460.0,0.00022792,2]
[376309472,1753925453243,-2451.93,0.00022793,2]
[376309473,1753925453252,-289.018842,0.00022794,7]
[376309474,1753925453261,-289.018842,0.00022794,7]
[376309475,1753925453271,-151.0,0.00022794,7]
[376309476,1753925453281,-251.577868,0.00022794,7]
[376309477,1753925453290,-675.78,0.00022794,2]
[376309478,1753925453299,-357.460275,0.00022794,7]
[376309479,1753925453308,-357.460275,0.00022794,7]
[376309480,1753925453317,-151.0,0.000228,9]
[376309481,1753925453327,-151.0,0.000228,5]
[376309482,1753925453337,-660.0,0.00022816,2]
[376309483,1753925453346,-1809.0,0.00022817,2]
[376309484,1753925453355,-151.0,0.00022817,7]
[376309485,1753925453364,-151.0,0.00022817,7]
[376309486,1753925453373,-800.0,0.00022848,2]
[376309487,1753925453382,-151.0,0.00022849,7]
[376309488,1753925453391,-151.0,0.00022849,7]
[376309489,1753925453401,-151.0,0.00022849,7]
[376309490,1753925453410,-578.5,0.0002286,5]
[376309491,1753925453420,-467.0,0.0002287,2]
[376309492,1753925453429,-467.0,0.0002287,2]
[376309493,1753925453438,-4373.06091408,0.000229,2]
[376309494,1753925453448,-81114.36784876,0.000229,7]
[376309495,1753925454679,-0.01291455,0.000229,7]
[376309497,1753926640129,-164136.96945587,0.000229,7]
[376309498,1753926640387,-50464.38609861,0.000229,7]
[376309499,1753926640396,-151.0,0.00022904,7]
[376309500,1753926640406,-151.0,0.00022904,7]
[376309501,1753926640415,-500.0,0.00022921,2]
[376309502,1753926640425,-1000.0,0.00022921,2]
[376309503,1753926640434,-789.67277964,0.00022921,2]
[376309504,1753926640443,-1000.0,0.00022921,2]
[376309505,1753926640453,-500.0,0.00022921,2]
[376309506,1753926640462,-1000.0,0.00022921,2]
[376309507,1753926640471,-1000.0,0.00022921,2]
[376309508,1753926640481,-1000.0,0.00022921,2]
[376309509,1753926640491,-500.0,0.00022921,2]
[376309510,1753926640500,-508.03497979,0.00022921,2]
[376309511,1753926640510,-1000.0,0.00022921,2]
[376309512,1753926640519,-1000.0,0.00022921,2]
[376309513,1753926640529,-917.72322748,0.00022921,2]
[376309514,1753926640538,-500.0,0.00022921,2]
[376309515,1753926640547,-1001.88421175,0.00022921,2]
[376309516,1753926640556,-1000.0,0.00022921,2]
[376309517,1753926640566,-1000.0,0.00022921,2]
[376309518,1753926640575,-652.77755015,0.00022921,2]
[376309519,1753926640584,-1000.0,0.00022921,2]
[376309520,1753926640594,-1000.0,0.00022921,2]
[376309521,1753926640605,-1000.0,0.00022921,2]
[376309522,1753926640614,-1000.0,0.00022921,2]
[376309523,1753926640623,-500.0,0.00022921,2]
[376309524,1753926640633,-1000.0,0.00022921,2]
[376309525,1753926640642,-500.0,0.00022921,2]
[376309526,1753926640651,-151.0,0.00022921,7]
[376309527,1753926640660,-151.0,0.00022921,7]
[376309528,1753926640669,-151.0,0.00022921,7]
[376309529,1753926640678,-658.466365,0.00022921,7]
[376309530,1753926640687,-658.466365,0.00022921,7]
[376309531,1753926640696,-151.0,0.00022921,7]
[376309532,1753926640706,-165.0563,0.00022921,7]
[376309533,1753926640715,-165.0563,0.00022921,7]
[376309534,1753926640724,-179.848808,0.00022921,7]
[376309535,1753926640734,-257.980292,0.00022921,7]
[376309536,1753926640743,-257.980292,0.00022921,7]
[376309537,1753926640752,-574.920082,0.00022921,7]
[376309538,1753926640762,-574.920082,0.00022921,7]
[376309539,1753926640771,-151.0,0.00022921,7]
[376309540,1753926640780,-312.56084,0.00022921,7]
[376309541,1753926640789,-312.56084,0.00022921,7]
[376309542,1753926640799,-1189.483359,0.00022921,7]
[376309543,1753926640808,-1189.483359,0.00022921,7]
[376309544,1753926640817,-486.641646,0.00022921,7]
[376309545,1753926640826,-486.641646,0.00022921,7]
[376309546,1753926640835,-153.950909,0.00022933,6]
[376309547,1753926640845,-150.0,0.00022973,2]
[376309548,1753926640854,-200.0,0.00022973,2]
[376309549,1753926640863,-500.0,0.00022973,2]
[376309550,1753926640872,-150.0,0.00022973,2]
[376309551,1753926640882,-151.0,0.00022973,7]
[376309552,1753926640891,-342.59219,0.00022973,7]
[376309553,1753926640903,-3506.36668213,0.0002298,2]
[376309554,1753926640914,-151.0,0.0002298,7]
[376309555,1753926640924,-874.411612,0.0002298,7]
[376309556,1753926640937,-874.411612,0.0002298,7]
[376309557,1753926640947,-151.0,0.00023,7]
[376309558,1753926640958,-151.0,0.00023,7]
[376309559,1753926640970,-151.0,0.00023,7]
[376309560,1753926641057,-151.0,0.00023,7]
[376309561,1753926641067,-151.0,0.00023,7]
[376309562,1753926641077,-217.151413,0.00023,7]
[376309563,1753926641086,-289.018842,0.00023,7]
[376309564,1753926641096,-289.018842,0.00023,7]
[376309565,1753926641106,-289.018842,0.00023,7]
[376309566,1753926641115,-289.018842,0.00023,7]
[376309567,1753926641125,-151.0,0.00023,7]
[376309568,1753926641134,-292.97394,0.00023,7]
[376309569,1753926641144,-160.0,0.00023,3]
[376309570,1753926641153,-151.0,0.00023,7]
[376309571,1753926641163,-151.0,0.00023,7]
[376309572,1753926641173,-151.0,0.00023,7]
[376309573,1753926641182,-128.47456437,0.00023,7]
[376309579,1753926645738,-22.52543563,0.00023,7]
[376309580,1753926645748,-151.0,0.00023,7]
[376309581,1753926645758,-151.0,0.00023,7]
[376309582,1753926645768,-219.084145,0.00023,7]
[376309583,1753926645778,-219.084145,0.00023,7]
[376309584,1753926645788,-219.084145,0.00023,7]
[376309585,1753926645798,-219.084145,0.00023,7]
[376309586,1753926645807,-238.84693,0.00023,7]
[376309587,1753926645817,-151.0,0.00023,7]
[376309588,1753926645827,-658.466365,0.00023,7]
[376309589,1753926645836,-151.0,0.00023,7]
[376309590,1753926645845,-658.466365,0.00023,7]
[376309591,1753926645855,-593.24488526,0.00023,7]
[376309592,1753926645871,-65.22147974,0.00023,7]
[376309593,1753926645882,-658.466365,0.00023,7]
[376309594,1753926645892,-151.0,0.00023,7]
[376309595,1753926645902,-151.0,0.00023,7]
[376309596,1753926645913,-151.0,0.00023,7]
[376309597,1753926645924,-151.0,0.00023,7]
[376309598,1753926645935,-299.57827,0.00023,7]
[376309599,1753926645946,-151.0,0.00023,7]
[376309600,1753926645959,-151.0,0.00023,7]
[376309601,1753926645970,-151.0,0.00023,7]
[376309602,1753926645982,-153.222899,0.00023,7]
[376309603,1753926645995,-290.155106,0.00023,7]
[376309604,1753926646006,-290.155106,0.00023,7]
[376309605,1753926646016,-290.155106,0.00023,7]
[376309606,1753926646028,-290.155106,0.00023,7]
[376309607,1753926646042,-165.0563,0.00023,7]
[376309608,1753926646052,-165.0563,0.00023,7]
[376309609,1753926646063,-165.0563,0.00023,7]
[376309610,1753926646075,-165.0563,0.00023,7]
[376309611,1753926646086,-501.83333416,0.00023,8]
[376309612,1753926646097,-188.466427,0.00023,7]
[376309613,1753926646106,-188.466427,0.00023,7]
[376309614,1753926646116,-188.466427,0.00023,7]
[376309615,1753926646127,-188.466427,0.00023,7]
[376309616,1753926646136,-357.460275,0.00023,7]
[376309617,1753926646146,-357.460275,0.00023,7]
[376309618,1753926646156,-357.460275,0.00023,7]
[376309619,1753926646166,-46.89381514,0.00023,7]
[376309620,1753926646179,-310.56645986,0.00023,7]
[376309621,1753926646190,-391.50697925,0.00023,4]
[376309622,1753926646203,-11972.37491386,0.00023,4]
[376309652,1753927832285,-45736.44368227,0.00023,4]
[376309663,1753927832337,-300.0,0.00023,4]
[376310275,1753927838358,-937.73896403,0.00023,4]
[376310278,1753927838374,-16224.41902891,0.00023,4]
[376310716,1753927843117,-272636.6337171,0.00023,4]
[376313208,1753927867994,500.0,0.0001995,2]
[376313213,1753927868025,372.80997038,0.0001995,2]
[376313447,1753927912932,17946.19002962,0.00019851,2]
[376313453,1753927983118,3297.829715,0.00026655,120]
[376313454,1753927988124,164.001729,0.00013699,2]
[376313458,1753928146804,330.59755436,0.00019001,2]
[376313460,1753928308280,734.6295032,0.00026655,120]
[376313473,1753928740358,150.0,0.00022918,30]
[376313475,1753928884696,162.0277016,0.00018541,2]
[376313476,1753928894528,265.83,0.00023,120]
[376313479,1753928947598,2000.0,0.00023,30]
[376313480,1753928950246,164.001729,0.00013699,2]
[376313568,1753929032411,-300.0,0.00019176,2]
[376313570,1753929032421,-300.0,0.00019176,2]
[376313572,1753929032430,-300.0,0.00019176,2]
[376313574,1753929032440,-1200.0,0.00019176,2]
[376313576,1753929032450,-1200.0,0.00019177,2]
[376313578,1753929032460,-300.0,0.00019177,2]
[376313580,1753929032469,-300.0,0.00019177,2]
[376313582,1753929032479,-4924.8520801,0.00019178,2]
[376313584,1753929032489,-666.0,0.00019178,2]
[376313587,1753929032499,-250.58797069,0.00019196,2]
[376313589,1753929032509,-153.45518677,0.00019461,2]
[376313591,1753929032518,-197.59358548,0.000195,2]
[376313593,1753929032527,-460.0,0.000195,2]
[376313595,1753929032537,-460.0,0.000195,2]
[376313597,1753929032546,-460.0,0.000195,2]
[376313599,1753929032556,-460.0,0.000195,2]
[376313601,1753929032565,-460.0,0.000195,2]
[376313603,1753929032574,-263.24081881,0.000195,2]
[376313605,1753929032584,-32034.04627937,0.000195,2]
[376313607,1753929032596,-960.05583154,0.000195,2]
[376313609,1753929032608,-265.22182124,0.000195,2]
[376313614,1753929032636,-9911.90000001,0.000195,2]
[376313616,1753929032648,-6828.77606784,0.000195,2]
[376313618,1753929032658,-460.0,0.000195,2]
[376313620,1753929032667,-460.0,0.000195,2]
[376313622,1753929032677,-275.21324651,0.000195,2]
[376313624,1753929032686,-460.0,0.000195,2]
[376313626,1753929032695,-1625.47,0.000195,2]
[376313628,1753929032705,-461.06127412,0.000195,2]
[376313630,1753929032715,-460.0,0.000195,2]
[376313632,1753929032724,-460.0,0.000195,2]
[376313634,1753929032734,-461.91039313,0.000195,2]
[376313636,1753929032743,-460.0,0.000195,2]
[376313638,1753929032753,-460.0,0.000195,2]
[376313640,1753929032764,-460.0,0.00019501,2]
[376313642,1753929032773,-460.0,0.00019501,2]
[376313644,1753929032782,-461.62460744,0.00019501,2]
[376313646,1753929032792,-460.0,0.00019501,2]
[376313648,1753929032801,-460.0,0.00019501,2]
[376313649,1753929032811,-460.0,0.00019501,2]
[376313651,1753929032820,-200.0,0.00019561,15]
[376313653,1753929032830,-200.0,0.00019561,15]
[376313655,1753929032839,-200.0,0.00019561,15]
[376313657,1753929032849,-200.0,0.00019561,15]
[376313659,1753929032858,-200.0,0.00019561,15]
[376313661,1753929032868,-200.0,0.00019561,15]
[376313663,1753929032882,-200.0,0.00019561,15]
[376313665,1753929032892,-200.0,0.00019561,15]
[376313667,1753929032902,-10230.54664317,0.000196,2]
[376313669,1753929032911,-4402.73497986,0.00019621,2]
[376313671,1753929032922,-1768.52954691,0.00019773,2]
[376313673,1753929032931,-635.44791394,0.00019773,2]
[376313717,1753929043307,-3197.66,0.000195,2]
[376313718,1753929043316,-460.0,0.000195,2]
[376313719,1753929043326,-460.0,0.000195,2]
[376313720,1753929043335,-462.33211955,0.000195,2]
[376313721,1753929043344,-460.0,0.000195,2]
[376313722,1753929043354,-463.28299137,0.000195,2]
[376313723,1753929043363,-3228.32650784,0.00019773,2]
[376313728,1753929046328,-460.0,0.000195,2]
[376313729,1753929046338,-460.0,0.000195,2]
[376313730,1753929046348,-460.0,0.000195,2]
[376313731,1753929046358,-460.0,0.000195,2]
[376313732,1753929046367,-3417.67147971,0.00019773,2]
[376313733,1753929046377,-460.0,0.00019774,2]
[376313734,1753929046386,-460.0,0.00019774,2]
[376313735,1753929046395,-461.60373433,0.00019774,2]
[376313736,1753929046405,-460.0,0.00019774,2]
[376313737,1753929046414,-460.02416197,0.00019774,2]
[376313738,1753929046424,-120.100624,0.00019774,2]
[376313739,1753929046465,-0.15014629,0.00019774,2]
[376313740,1753929068516,196.79625,0.00018715,2]
[376313741,1753929068981,328.19440079,0.00018785,2]
[376313742,1753929072254,618.84594602,0.000189,2]
[376313743,1753929090306,150.0,0.00022034,30]
[376313744,1753929180612,14679.4880923,0.00018393,2]
[376313746,1753929370103,295.34486309,0.00018335,2]
[376313747,1753929373827,412.56396401,0.000189,2]
[376313750,1753929567906,-172.017771,0.00019178,2]
[376313751,1753929567926,-5274.85,0.000193,2]
[376313752,1753929567946,-1414.82363752,0.000194,2]
[376313753,1753929567967,-701.155,0.00019404,2]
[376313754,1753929567987,-1200.0,0.00019472,2]
[376313755,1753929568006,-503.59975852,0.00019473,2]
[376313756,1753929568025,-502.1572233,0.00019473,2]
[376313757,1753929568044,-500.0,0.00019473,2]
[376313758,1753929568063,-500.0,0.00019473,2]
[376313759,1753929568082,-19231.39660966,0.00019497,2]
[376313760,1753929671306,346.78745,0.00018912,2]
[376313761,1753929671635,181.0201107,0.00018912,2]
[376313762,1753929674942,275.04264267,0.000189,2]
[376313781,1753929962288,164.001729,0.00013699,2]
[376313782,1753929976342,183.36176178,0.000189,2]
[376313784,1753930138741,-153.45518673,0.00019396,2]
[376313785,1753930138764,-1131.85891004,0.000194,2]
[376313786,1753930138786,-300.0,0.00019472,2]
[376313787,1753930138808,-287.70602492,0.00019473,2]
[376313788,1753930138829,-501.61122081,0.00019473,2]
[376313789,1753930138851,-334.73932938,0.00019473,2]
[376313790,1753930138872,-502.93463948,0.00019473,2]
[376313791,1753930138894,-500.0,0.00019473,2]
[376313792,1753930138914,-500.0,0.00019473,2]
[376313793,1753930138935,-500.0,0.00019473,2]
[376313794,1753930138955,-500.0,0.00019473,2]
[376313795,1753930138976,-4787.69468864,0.00019473,2]
[376313873,1753930232845,-905.48712804,0.00019399,2]
[376313875,1753930232855,-500.0,0.00019399,2]
[376313877,1753930232864,-500.0,0.00019399,2]
[376313879,1753930232873,-500.0,0.00019399,2]
[376313881,1753930232883,-500.0,0.00019399,2]
[376313883,1753930232892,-500.0,0.00019399,2]
[376313885,1753930232901,-500.0,0.00019399,2]
[376313887,1753930232910,-500.0,0.00019399,2]
[376313889,1753930232919,-500.0,0.00019399,2]
[376313891,1753930232928,-500.0,0.00019399,2]
[376313893,1753930232938,-500.0,0.00019399,2]
[376313895,1753930232948,-190944.36230561,0.000194,2]
[376313898,1753930232973,-500.0,0.00019399,2]
[376313900,1753930232982,-189.20048929,0.00019399,2]
[376313902,1753930232991,-16331.66654396,0.000194,2]
[376313909,1753930233050,-809.93962043,0.000194,2]
[376314414,1753930238798,-524.91663687,0.00019399,2]
[376314416,1753930238808,-500.0,0.00019399,2]
[376314418,1753930238819,-500.0,0.00019399,2]
[376314420,1753930238829,-500.0,0.00019399,2]
[376314422,1753930238839,-500.0,0.00019399,2]
[376314424,1753930238848,-500.0,0.00019399,2]
[376314426,1753930238860,-500.0,0.00019399,2]
[376314428,1753930238869,-500.0,0.00019399,2]
[376314430,1753930238878,-500.0,0.00019399,2]
[376314432,1753930238888,-500.0,0.00019399,2]
[376314434,1753930238897,-500.0,0.00019399,2]
[376314436,1753930238907,-500.0,0.00019399,2]
[376314438,1753930238916,-500.0,0.00019399,2]
[376314440,1753930238926,-64.18770768,0.00019399,2]
[376314442,1753930238938,-254.66911156,0.00019399,2]
[376314445,1753930238955,-181.14318076,0.00019399,2]
[376314447,1753930238964,-500.0,0.00019399,2]
[376314449,1753930238974,-486.49632528,0.00019399,2]
[376314632,1753930240671,-137.15514129,0.00019399,2]
[376314634,1753930240680,-402.83646848,0.00019399,2]
[376314637,1753930240692,-97.16353152,0.00019399,2]
[376314639,1753930240701,-500.0,0.00019399,2]
[376314641,1753930240710,-500.0,0.00019399,2]
[376314642,1753930240719,-500.0,0.00019399,2]
[376314645,1753930240730,-500.0,0.00019399,2]
[376314647,1753930240744,-110.86375716,0.00019399,2]
[376314809,1753930242474,3269.0,0.00026664,120]
[376315229,1753930246379,-397.66497941,0.00019372,2]
[376315231,1753930246389,-389.13624284,0.00019399,2]
[376315233,1753930246399,-500.0,0.00019399,2]
[376315235,1753930246409,-500.0,0.00019399,2]
[376315237,1753930246419,-500.0,0.00019399,2]
[376315239,1753930246428,-238.88375684,0.00019399,2]
[376315241,1753930246438,-500.0,0.00019399,2]
[376315243,1753930246448,-500.0,0.00019399,2]
[376315245,1753930246458,-500.0,0.00019399,2]
[376315247,1753930246467,-500.0,0.00019399,2]
[376315249,1753930246477,-500.0,0.00019399,2]
[376315251,1753930246487,-500.0,0.00019399,2]
[376315253,1753930246496,-500.0,0.00019399,2]
[376315255,1753930246505,-500.0,0.00019399,2]
[376315257,1753930246514,-500.0,0.00019399,2]
[376315259,1753930246523,-500.0,0.00019399,2]
[376315261,1753930246533,-500.0,0.00019399,2]
[376315263,1753930246542,-500.0,0.00019399,2]
[376315265,1753930246551,-350.85921433,0.00019399,2]
[376315267,1753930246560,-183.90535058,0.00019399,2]
[376315290,1753930246773,-316.09464942,0.00019399,2]
[376315292,1753930246784,-548.76042499,0.00019399,2]
[376315294,1753930246794,-500.0,0.00019399,2]
[376315296,1753930246803,-500.0,0.00019399,2]
[376315298,1753930246813,-500.0,0.00019399,2]
[376315300,1753930246824,-500.0,0.00019399,2]
[376315302,1753930246839,-500.0,0.00019399,2]
[376315304,1753930246848,-500.0,0.00019399,2]
[376315306,1753930246860,-500.0,0.00019399,2]
[376315308,1753930246870,-500.0,0.00019399,2]
[376315310,1753930246879,-500.0,0.00019399,2]
[376315311,1753930246888,-500.0,0.00019399,2]
[376315314,1753930246900,-500.0,0.00019399,2]
[376315316,1753930246909,-500.0,0.00019399,2]
[376315318,1753930246919,-500.0,0.00019399,2]
[376315320,1753930246928,-500.0,0.00019399,2]
[376315322,1753930246937,-500.0,0.00019399,2]
[376315324,1753930246948,-500.0,0.00019399,2]
[376315326,1753930246958,-500.0,0.00019399,2]
[376315328,1753930246968,-500.0,0.00019399,2]
[376315330,1753930246977,-500.0,0.00019399,2]
[376315332,1753930246986,-500.0,0.00019399,2]
[376315334,1753930246996,-500.0,0.00019399,2]
[376315336,1753930247005,-500.0,0.00019399,2]
[376315338,1753930247014,-500.0,0.00019399,2]
[376315340,1753930247023,-500.0,0.00019399,2]
[376315342,1753930247033,-500.0,0.00019399,2]
[376315344,1753930247042,-500.0,0.00019399,2]
[376315346,1753930247052,-500.0,0.00019399,2]
[376315348,1753930247061,-500.0,0.00019399,2]
[376315350,1753930247070,-500.0,0.00019399,2]
[376315352,1753930247079,-500.0,0.00019399,2]
[376315354,1753930247089,-500.0,0.00019399,2]
[376315356,1753930247098,-500.0,0.00019399,2]
[376315358,1753930247108,-500.0,0.00019399,2]
[376315360,1753930247117,-500.0,0.00019399,2]
[376315362,1753930247128,-500.0,0.00019399,2]
[376315364,1753930247137,-500.0,0.00019399,2]
[376315366,1753930247146,-500.0,0.00019399,2]
[376315368,1753930247155,-500.0,0.00019399,2]
[376315370,1753930247164,-500.0,0.00019399,2]
[376315371,1753930247174,-500.0,0.00019399,2]
[376315373,1753930247183,-500.0,0.00019399,2]
[376315375,1753930247193,-500.0,0.00019399,2]
[376315377,1753930247202,-500.0,0.00019399,2]
[376315379,1753930247211,-500.0,0.00019399,2]
[376315381,1753930247219,-500.0,0.00019399,2]
[376315383,1753930247229,-500.0,0.00019399,2]
[376315385,1753930247238,-500.0,0.00019399,2]
[376315387,1753930247248,-500.0,0.00019399,2]
[376315389,1753930247257,-500.0,0.00019399,2]
[376315391,1753930247266,-500.0,0.00019399,2]
[376315403,1753930247275,-500.0,0.00019399,2]
[376315406,1753930247381,-500.0,0.00019399,2]
[376315408,1753930247390,-500.0,0.00019399,2]
[376315409,1753930247399,-500.0,0.00019399,2]
[376315411,1753930247408,-500.0,0.00019399,2]
[376315414,1753930247418,-500.0,0.00019399,2]
[376315415,1753930247428,-644.67934962,0.00019399,2]
[376315417,1753930247438,-500.0,0.00019399,2]
[376315419,1753930247447,-924.99400657,0.00019399,2]
[376315421,1753930247456,-500.0,0.00019399,2]
[376315423,1753930247465,-924.99400657,0.00019399,2]
[376315425,1753930247475,-924.99400657,0.00019399,2]
[376315427,1753930247485,-924.99400657,0.00019399,2]
[376315429,1753930247494,-924.99400657,0.00019399,2]
[376315431,1753930247503,-924.99400657,0.00019399,2]
[376315433,1753930247512,-924.99400657,0.00019399,2]
[376315435,1753930247522,-500.0,0.00019399,2]
[376315437,1753930247533,-924.99400657,0.00019399,2]
[376315439,1753930247542,-347.93859984,0.00019399,2]
[376315442,1753930247554,-152.06140016,0.00019399,2]
[376315444,1753930247563,-351.76859984,0.00019399,2]
[376315446,1753930247579,-276.17482454,0.00019399,2]
[376315448,1753930247588,-251.6798085,0.00019399,2]
[376315846,1753930272964,150.0,0.00022047,30]
[376315847,1753930277583,150.0,0.000189,2]
[376315848,1753930285687,-224.25071602,0.00019289,2]
[376315849,1753930285709,-4775.74928398,0.00019372,2]
[376315850,1753930310636,366.2276913,0.00018614,2]
[376315852,1753930579059,342.41709404,0.000189,2]
[376315857,1753930880788,458.36349299,0.000189,2]
[376315858,1753930896798,164.001729,0.00013699,2]
[376315867,1753931182340,305.575662,0.000189,2]
[376315953,1753931417242,196.724799,0.00018298,2]
[376316061,1753931432794,-172.017771,0.00019178,2]
[376316063,1753931432804,-152.34723588,0.00019195,2]
[376316065,1753931432813,-152.34723587,0.0001922,2]
[376316067,1753931432822,-152.34723587,0.00019244,2]
[376316069,1753931432832,-177.86628512,0.00019247,2]
[376316071,1753931432841,-956.67423626,0.00019293,2]
[376316073,1753931432853,-62.39488118,0.00019293,2]
[376316075,1753931432862,-300.0,0.00019295,2]
[376316077,1753931432872,-237.0,0.00019295,2]
[376316079,1753931432881,-300.0,0.00019295,2]
[376316081,1753931432890,-300.0,0.00019295,2]
[376316083,1753931432900,-871.5696012,0.00019295,2]
[376316086,1753931432912,-328.4303988,0.00019295,2]
[376316089,1753931432921,-300.0,0.00019295,2]
[376316092,1753931432930,-3800.0067079,0.00019296,2]
[376316095,1753931432940,-1019.06911742,0.00019319,2]
[376316098,1753931432949,-460.0,0.00019344,2]
[376316101,1753931432959,-460.0,0.00019344,2]
[376316105,1753931432968,-460.0,0.00019344,2]
[376316109,1753931432977,-460.0,0.00019344,2]
[376316113,1753931432986,-6066.08377588,0.00019344,2]
[376316116,1753931432999,-43933.91622412,0.00019344,2]
[376316119,1753931433008,-1019.06911742,0.00019345,2]
[376316122,1753931433018,-460.0,0.00019347,2]
[376316125,1753931433027,-460.0,0.00019347,2]
[376316128,1753931433038,-460.6460224,0.00019347,2]
[376316131,1753931433047,-1595.41,0.00019347,2]
[376316134,1753931433057,-460.0,0.00019347,2]
[376316137,1753931433066,-460.0,0.00019347,2]
[376316140,1753931433076,-462.19656295,0.00019347,2]
[376316143,1753931433086,-440.92772842,0.00019347,2]
[376316146,1753931433096,-3904.81,0.00019347,2]
[376316149,1753931433105,-460.0,0.00019347,2]
[376316152,1753931433116,-811.693872,0.00019351,2]
[376316154,1753931433126,-1019.06911742,0.0001937,2]
[376316157,1753931433136,-460.0,0.00019372,2]
[376316158,1753931433146,-141.96119352,0.00019372,2]
[376316177,1753931433329,-319.91753452,0.00019372,2]
[376316179,1753931433339,-460.0,0.00019372,2]
[376316181,1753931433349,-460.64736986,0.00019372,2]
[376316183,1753931433359,-2329.78,0.00019372,2]
[376316185,1753931433370,-460.0,0.00019372,2]
[376316187,1753931433380,-460.0,0.00019372,2]
[376316190,1753931433398,-460.0,0.00019372,2]
[376316193,1753931433410,-460.0,0.00019372,2]
[376316195,1753931433420,-460.0,0.00019372,2]
[376316197,1753931433430,-460.0,0.00019372,2]
[376316199,1753931433440,-460.0,0.00019372,2]
[376316201,1753931433450,-1612.73,0.00019372,2]
[376316203,1753931433460,-1521.49,0.00019372,2]
[376316205,1753931433470,-460.0,0.00019372,2]
[376316207,1753931433480,-460.0,0.00019372,2]
[376316209,1753931433491,-460.0,0.00019372,2]
[376316211,1753931433500,-974.15,0.00019372,2]
[376316213,1753931433510,-460.0,0.00019372,2]
[376316215,1753931433520,-460.0,0.00019372,2]
[376316217,1753931433530,-460.0,0.00019372,2]